fUSD/lending_fUSD_20250826
["ID","MTS","AMOUNT","RATE_DAILY","PERIOD"]
[381516049,1756242644733,-400.0,0.00027397,5]
[381516051,1756242644743,-750.49,0.00027397,5]
[381516053,1756242644752,-679.27,0.00027397,5]
[381516055,1756242644762,-400.0,0.00027397,5]
[381516057,1756242644772,-815.34,0.00027397,5]
[381516059,1756242644782,-540.07,0.00027397,5]
[381516061,1756242644791,-566.98,0.00027397,5]
[381516063,1756242644801,-1131.25,0.00027397,5]
[381516065,1756242644810,-400.0,0.00027397,5]
[381516067,1756242644820,-462.84,0.00027397,5]
[381516069,1756242644829,-822.47,0.00027397,5]
[381516071,1756242644839,-564.78899959,0.00027397,5]
[381516151,1756242645641,-76.48100041,0.00027397,5]
[381516153,1756242645651,-570.09,0.00027397,5]
[381516155,1756242645660,-400.0,0.00027397,5]
[381516157,1756242645669,-827.68,0.00027397,5]
[381516159,1756242645678,-776.26,0.00027397,5]
[381516161,1756242645688,-400.0,0.00027397,5]
[381516163,1756242645697,-1200.87,0.00027397,5]
[381516165,1756242645706,-400.0,0.00027397,5]
[381516167,1756242645715,-1052.37,0.00027397,5]
[381516169,1756242645725,-400.0,0.00027397,5]
[381516171,1756242645734,-767.5,0.00027397,5]
[381516173,1756242645743,-1024.43,0.00027397,5]
[381516176,1756242645753,-1401.15,0.00027397,5]
[381516178,1756242645762,-765.34,0.00027397,5]
[381516180,1756242645771,-400.0,0.00027397,5]
[381516182,1756242645780,-400.0,0.00027397,5]
[381516184,1756242645789,-564.16,0.00027397,5]
[381516186,1756242645798,-688.7,0.00027397,5]
[381516188,1756242645808,-633.9,0.00027397,5]
[381516190,1756242645816,-922.75,0.00027397,5]
[381516192,1756242645826,-400.0,0.00027397,5]
[381516194,1756242645835,-489.71013038,0.00027397,5]
[381516196,1756242645845,-400.0,0.00027397,5]
[381516198,1756242645854,-980.31,0.00027397,5]
[381516199,1756242645863,-1595.47,0.00027397,5]
[381516201,1756242645872,-1431.84,0.00027397,5]
[381516203,1756242645882,-916.76,0.00027397,5]
[381516205,1756242645891,-400.0,0.00027397,5]
[381516207,1756242645900,-670.91,0.00027397,5]
[381516209,1756242645909,-400.0,0.00027397,5]
[381516211,1756242645918,-563.29,0.00027397,5]
[381516213,1756242645928,-400.0,0.00027397,5]
[381516215,1756242645937,-400.0,0.00027397,5]
[381516217,1756242645946,-400.0,0.00027397,5]
[381516219,1756242645956,-2827.93,0.00027397,5]
[381516221,1756242645965,-400.0,0.00027397,5]
[381516223,1756242645974,-518.32,0.00027397,5]
[381516225,1756242645983,-435.89,0.00027397,5]
[381516226,1756242645993,-581.3,0.00027397,5]
[381516228,1756242646005,-485.08,0.00027397,5]
[381516230,1756242646015,-400.0,0.00027397,5]
[381516232,1756242646024,-926.69,0.00027397,5]
[381516234,1756242646034,-1227.25,0.00027397,5]
[381516236,1756242646043,-581.78,0.00027397,5]
[381516237,1756242646052,-679.31,0.00027397,5]
[381516239,1756242646062,-512.43,0.00027397,5]
[381516241,1756242646071,-400.0,0.00027397,5]
[381516243,1756242646082,-400.0,0.00027397,5]
[381516245,1756242646091,-335.47985413,0.00027397,5]
[381516247,1756242646101,-935.09,0.00027397,5]
[381516249,1756242646110,-701.35,0.00027397,5]
[381516251,1756242646119,-991.38,0.00027397,5]
[381516253,1756242646129,-400.0,0.00027397,5]
[381516255,1756242646138,-878.7,0.00027397,5]
[381516257,1756242646147,-400.0,0.00027397,5]
[381516259,1756242646157,-1095.33,0.00027397,5]
[381516261,1756242646166,-1020.79,0.00027397,5]
[381516263,1756242646176,-400.0,0.00027397,5]
[381516265,1756242646185,-400.0,0.00027397,5]
[381516267,1756242646194,-400.0,0.00027397,5]
[381516269,1756242646204,-822.02,0.00027397,5]
[381516270,1756242646214,-400.0,0.00027397,5]
[381516272,1756242646223,-1167.43,0.00027397,5]
[381516274,1756242646232,-1116.38,0.00027397,5]
[381516276,1756242646241,-888.29,0.00027397,5]
[381516278,1756242646251,-400.0,0.00027397,5]
[381516279,1756242646260,-1037.53,0.00027397,5]
[381516280,1756242646269,-400.0,0.00027397,5]
[381516281,1756242646278,-400.0,0.00027397,5]
[381516282,1756242646287,-400.0,0.00027397,5]
[381516283,1756242646296,-578.14,0.00027397,5]
[381516284,1756242646305,-1215.46,0.00027397,5]
[381516285,1756242646315,-495.83,0.00027397,5]
[381516286,1756242646324,-473.03,0.00027397,5]
[381516287,1756242646334,-400.0,0.00027397,5]
[381516288,1756242646343,-552.75,0.00027397,5]
[381516289,1756242646351,-400.0,0.00027397,5]
[381516290,1756242646361,-1056.43,0.00027397,5]
[381516291,1756242646370,-344.48103502,0.00027397,5]
[381516292,1756242646380,-723.89,0.00027397,5]
[381516293,1756242646389,-705.33,0.00027397,5]
[381516294,1756242646399,-400.0,0.00027397,5]
[381516295,1756242646408,-702.33,0.00027397,5]
[381516296,1756242646417,-400.0,0.00027397,5]
[381516297,1756242646427,-400.0,0.00027397,5]
[381516298,1756242646436,-500.0,0.00027397,5]
[381516299,1756242646445,-500.0,0.00027397,5]
[381516300,1756242646454,-500.0,0.00027397,5]
[381516301,1756242646464,-594.82,0.00027397,5]
[381516302,1756242646474,-400.0,0.00027397,5]
[381516303,1756242646483,-666.72,0.00027397,5]
[381516304,1756242646493,-784.69,0.00027397,5]
[381516305,1756242646502,-434.92,0.00027397,5]
[381516306,1756242646511,-927.16,0.00027397,5]
[381516307,1756242646520,-876.52,0.00027397,5]
[381516308,1756242646530,-517.09,0.00027397,5]
[381516309,1756242646540,-648.3,0.00027397,5]
[381516310,1756242646549,-400.0,0.00027397,5]
[381516311,1756242646558,-826.23,0.00027397,5]
[381516312,1756242646567,-769.61,0.00027397,5]
[381516313,1756242646576,-544.77,0.00027397,5]
[381516314,1756242646585,-400.0,0.00027397,5]
[381516315,1756242646595,-400.0,0.00027397,5]
[381516316,1756242646604,-1974.76,0.00027397,5]
[381516317,1756242646614,-612.7,0.00027397,5]
[381516318,1756242646623,-400.0,0.00027397,5]
[381516319,1756242646632,-896.14,0.00027397,5]
[381516320,1756242646641,-880.08,0.00027397,5]
[381516321,1756242646651,-400.0,0.00027397,5]
[381516322,1756242646660,-496.59,0.00027397,5]
[381516323,1756242646669,-413.85,0.00027397,5]
[381516324,1756242646679,-400.0,0.00027397,5]
[381516325,1756242646688,-400.0,0.00027397,5]
[381516326,1756242646697,-427.73,0.00027397,5]
[381516327,1756242646706,-311.2038153,0.00027397,5]
[381516328,1756242646717,-400.0,0.00027397,5]
[381516329,1756242646727,-946.7,0.00027397,5]
[381516330,1756242646736,-428.43371861,0.00027397,5]
[381516331,1756242646745,-983.62,0.00027397,5]
[381516332,1756242646755,-490.78319116,0.00027397,5]
[381516333,1756242646765,-1232.01,0.00027397,5]
[381516334,1756242646774,-400.0,0.00027397,5]
[381516335,1756242646783,-633.39,0.00027397,5]
[381516336,1756242646792,-400.0,0.00027397,5]
[381516337,1756242646802,-420.44723737,0.00027397,5]
[381516338,1756242646812,-624.72,0.00027397,5]
[381516339,1756242646823,-400.0,0.00027397,5]
[381516340,1756242646832,-570.17,0.00027397,5]
[381516341,1756242646842,-404.5,0.00027397,5]
[381516342,1756242646851,-494.63,0.00027397,5]
[381516343,1756242646861,-1047.97,0.00027397,5]
[381516344,1756242646871,-1000.0,0.00027397,5]
[381516345,1756242646881,-800.51,0.00027397,5]
[381516346,1756242646890,-490.36338696,0.00027397,5]
[381516347,1756242646899,-400.0,0.00027397,5]
[381516348,1756242646908,-400.0,0.00027397,5]
[381516349,1756242646917,-563.47,0.00027397,5]
[381516350,1756242646927,-538.52,0.00027397,5]
[381516351,1756242646937,-759.14,0.00027397,5]
[381516352,1756242646946,-601.51,0.00027397,5]
[381516353,1756242646955,-506.06,0.00027397,5]
[381516354,1756242646968,-400.0,0.00027397,5]
[381516355,1756242646977,-400.0,0.00027397,5]
[381516356,1756242646987,-400.0,0.00027397,5]
[381516357,1756242646997,-482.91,0.00027397,5]
[381516358,1756242647012,-946.54,0.00027397,5]
[381516359,1756242647022,-400.0,0.00027397,5]
[381516360,1756242647032,-393.3694084,0.00027397,5]
[381516361,1756242647044,-400.0,0.00027397,5]
[381516362,1756242647053,-1143.47,0.00027397,5]
[381516363,1756242647063,-400.0,0.00027397,5]
[381516364,1756242647073,-523.25,0.00027397,5]
[381516365,1756242647083,-420.65,0.00027397,5]
[381516366,1756242647092,-902.05,0.00027397,5]
[381516367,1756242647102,-1206.42,0.00027397,5]
[381516368,1756242647111,-400.0,0.00027397,5]
[381516369,1756242647121,-151.0,0.00027397,7]
[381516370,1756242647130,-482.45,0.00027397,5]
[381516371,1756242647139,-400.0,0.00027397,5]
[381516372,1756242647148,-786.21,0.00027397,5]
[381516373,1756242647157,-1022.48,0.00027397,5]
[381516374,1756242647166,-400.0,0.00027397,5]
[381516375,1756242647176,-151.0,0.00027397,7]
[381516376,1756242647185,-701.23,0.00027397,5]
[381516377,1756242647195,-831.62,0.00027397,5]
[381516378,1756242647204,-400.0,0.00027397,5]
[381516379,1756242647214,-400.0,0.00027397,5]
[381516380,1756242647223,-400.0,0.00027397,5]
[381516381,1756242647232,-490.85763015,0.00027397,5]
[381516382,1756242647242,-468.82,0.00027397,5]
[381516383,1756242647252,-400.0,0.00027397,5]
[381516384,1756242647262,-400.0,0.00027397,5]
[381516385,1756242647272,-554.26,0.00027397,5]
[381516386,1756242647282,-400.0,0.00027397,5]
[381516387,1756242647291,-400.0,0.00027397,5]
[381516388,1756242647301,-400.0,0.00027397,5]
[381516389,1756242647310,-898.4,0.00027397,5]
[381516390,1756242647320,-660.95,0.00027397,5]
[381516391,1756242647330,-1252.55,0.00027397,5]
[381516392,1756242647342,-400.0,0.00027397,5]
[381516393,1756242647351,-639.97,0.00027397,5]
[381516394,1756242647360,-439.98,0.00027397,5]
[381516395,1756242647370,-400.0,0.00027397,5]
[381516396,1756242647379,-1331.87,0.00027397,5]
[381516397,1756242647388,-938.63,0.00027397,5]
[381516398,1756242647397,-151.0,0.00027397,7]
[381516399,1756242647407,-592.62,0.00027397,5]
[381516400,1756242647416,-605.48,0.00027397,5]
[381516401,1756242647426,-517.28,0.00027397,5]
[381516402,1756242647436,-620.6,0.00027397,5]
[381516403,1756242647445,-400.0,0.00027397,5]
[381516404,1756242647455,-490.0,0.00027397,5]
[381516405,1756242647464,-828.32,0.00027397,5]
[381516406,1756242647474,-816.79,0.00027397,5]
[381516407,1756242647484,-457.44,0.00027397,5]
[381516408,1756242647493,-756.77,0.00027397,5]
[381516409,1756242647502,-633.85,0.00027397,5]
[381516410,1756242647511,-400.0,0.00027397,5]
[381516411,1756242647520,-400.0,0.00027397,5]
[381516412,1756242647529,-492.8,0.00027397,5]
[381516413,1756242647538,-684.49,0.00027397,5]
[381516414,1756242647548,-152.518366,0.00027397,7]
[381516415,1756242647557,-969.79,0.00027397,5]
[381516416,1756242647566,-400.0,0.00027397,5]
[381516417,1756242647575,-440.63,0.00027397,5]
[381516418,1756242647702,-400.0,0.00027397,5]
[381516419,1756242647724,-982.28,0.00027397,5]
[381516420,1756242647733,-638.18,0.00027397,5]
[381516421,1756242647743,-400.0,0.00027397,5]
[381516422,1756242647752,-400.0,0.00027397,5]
[381516423,1756242647762,-400.0,0.00027397,5]
[381516424,1756242647772,-1166.8,0.00027397,5]
[381516425,1756242647781,-550.2,0.00027397,5]
[381516426,1756242647791,-400.0,0.00027397,5]
[381516427,1756242647801,-400.0,0.00027397,5]
[381516428,1756242647810,-751.63,0.00027397,5]
[381516429,1756242647819,-400.0,0.00027397,5]
[381516430,1756242647828,-896.3,0.00027397,5]
[381516431,1756242647838,-584.01,0.00027397,5]
[381516432,1756242647847,-631.31,0.00027397,5]
[381516433,1756242647857,-453.37,0.00027397,5]
[381516434,1756242647867,-611.41,0.00027397,5]
[381516435,1756242647876,-400.0,0.00027397,5]
[381516436,1756242647885,-400.0,0.00027397,5]
[381516437,1756242647895,-485.14,0.00027397,5]
[381516438,1756242647904,-400.85,0.00027397,5]
[381516439,1756242647914,-400.0,0.00027397,5]
[381516440,1756242647923,-400.0,0.00027397,5]
[381516441,1756242647932,-901.19,0.00027397,5]
[381516442,1756242647942,-814.5,0.00027397,5]
[381516443,1756242647951,-400.0,0.00027397,5]
[381516444,1756242647960,-705.06,0.00027397,5]
[381516445,1756242647969,-1197.09,0.00027397,5]
[381516446,1756242647979,-772.0,0.00027397,5]
[381516447,1756242647988,-400.0,0.00027397,5]
[381516448,1756242648000,-400.0,0.00027397,5]
[381516449,1756242648014,-400.0,0.00027397,5]
[381516450,1756242648024,-509.71,0.00027397,5]
[381516451,1756242648034,-400.0,0.00027397,5]
[381516452,1756242648046,-400.0,0.00027397,5]
[381516453,1756242648056,-400.0,0.00027397,5]
[381516454,1756242648066,-706.01,0.00027397,5]
[381516455,1756242648077,-400.0,0.00027397,5]
[381516456,1756242648089,-476.55,0.00027397,5]
[381516457,1756242648099,-890.86,0.00027397,5]
[381516458,1756242648109,-512.48,0.00027397,5]
[381516459,1756242648120,-400.0,0.00027397,5]
[381516460,1756242648130,-1084.35,0.00027397,5]
[381516461,1756242648140,-400.0,0.00027397,5]
[381516462,1756242648150,-440.26,0.00027397,5]
[381516463,1756242648159,-400.0,0.00027397,5]
[381516464,1756242648168,-675.9,0.00027397,5]
[381516465,1756242648178,-860.67,0.00027397,5]
[381516466,1756242648187,-953.41,0.00027397,5]
[381516467,1756242648196,-400.0,0.00027397,5]
[381516468,1756242648206,-1493.14,0.00027397,5]
[381516469,1756242648215,-377.6340984,0.00027397,5]
[381516470,1756242648224,-713.84,0.00027397,5]
[381516471,1756242648234,-9649.11,0.00027397,5]
[381516472,1756242648243,-400.0,0.00027397,5]
[381516473,1756242648253,-400.0,0.00027397,5]
[381516474,1756242648263,-594.28,0.00027397,5]
[381516475,1756242648272,-634.83,0.00027397,5]
[381516476,1756242648282,-400.0,0.00027397,5]
[381516477,1756242648292,-400.0,0.00027397,5]
[381516478,1756242648302,-400.0,0.00027397,5]
[381516479,1756242648312,-565.76,0.00027397,5]
[381516480,1756242648322,-400.0,0.00027397,5]
[381516481,1756242648331,-975.17,0.00027397,5]
[381516482,1756242648341,-1012.03,0.00027397,5]
[381516483,1756242648351,-462.92,0.00027397,5]
[381516484,1756242648360,-765.99,0.00027397,5]
[381516485,1756242648370,-400.0,0.00027397,5]
[381516486,1756242648380,-875.78,0.00027397,5]
[381516487,1756242648390,-634.1,0.00027397,5]
[381516488,1756242648399,-866.22,0.00027397,5]
[381516489,1756242648409,-752.41,0.00027397,5]
[381516490,1756242648418,-758.34,0.00027397,5]
[381516491,1756242648427,-400.0,0.00027397,5]
[381516492,1756242648436,-400.0,0.00027397,5]
[381516493,1756242648446,-465.58,0.00027397,5]
[381516494,1756242648455,-400.0,0.00027397,5]
[381516495,1756242648464,-505.03,0.00027397,5]
[381516496,1756242648474,-1051.55,0.00027397,5]
[381516498,1756242648483,-151.0,0.00027397,7]
[381516499,1756242648492,-183.61222451,0.00027397,5]
[381516500,1756242648502,-602.36,0.00027397,5]
[381516501,1756242648511,-1096.68,0.00027397,5]
[381516502,1756242648520,-591.86,0.00027397,5]
[381516503,1756242648530,-400.0,0.00027397,5]
[381516504,1756242648539,-587.83,0.00027397,5]
[381516505,1756242648548,-400.0,0.00027397,5]
[381516506,1756242648558,-400.0,0.00027397,5]
[381516507,1756242648568,-502.51,0.00027397,5]
[381516508,1756242648577,-711.31,0.00027397,5]
[381516509,1756242648591,-400.0,0.00027397,5]
[381516510,1756242648601,-711.95,0.00027397,5]
[381516511,1756242648610,-400.0,0.00027397,5]
[381516512,1756242648620,-400.0,0.00027397,5]
[381516513,1756242648630,-507.1,0.00027397,5]
[381516514,1756242648639,-528.73,0.00027397,5]
[381516515,1756242648648,-400.0,0.00027397,5]
[381516516,1756242648658,-832.28,0.00027397,5]
[381516517,1756242648668,-563.23,0.00027397,5]
[381516518,1756242648676,-534.6,0.00027397,5]
[381516519,1756242648686,-406.27,0.00027397,5]
[381516520,1756242648696,-400.0,0.00027397,5]
[381516521,1756242648706,-400.0,0.00027397,5]
[381516522,1756242648715,-577.0,0.00027397,5]
[381516523,1756242648725,-673.4,0.00027397,5]
[381516524,1756242648734,-497.85,0.00027397,5]
[381516525,1756242648743,-400.0,0.00027397,5]
[381516526,1756242648754,-400.0,0.00027397,5]
[381516527,1756242648764,-400.0,0.00027397,5]
[381516528,1756242648773,-400.0,0.00027397,5]
[381516529,1756242648784,-1062.12,0.00027397,5]
[381516530,1756242648793,-1066.2,0.00027397,5]
[381516531,1756242648803,-400.0,0.00027397,5]
[381516532,1756242648812,-858.82,0.00027397,5]
[381516533,1756242648822,-400.0,0.00027397,5]
[381516534,1756242648831,-400.0,0.00027397,5]
[381516535,1756242648841,-492.95,0.00027397,5]
[381516536,1756242648850,-876.6,0.00027397,5]
[381516537,1756242648860,-835.91,0.00027397,5]
[381516538,1756242648870,-1039.57,0.00027397,5]
[381516539,1756242648880,-400.0,0.00027397,5]
[381516540,1756242648890,-947.64,0.00027397,5]
[381516541,1756242648899,-483.62,0.00027397,5]
[381516542,1756242648909,-791.28,0.00027397,5]
[381516543,1756242648919,-490.0,0.00027397,5]
[381516544,1756242648928,-2000.0,0.00027397,30]
[381516545,1756242648938,-893.31,0.00027397,5]
[381516546,1756242648948,-646.8,0.00027397,5]
[381516547,1756242648958,-592.05,0.00027397,5]
[381516548,1756242648967,-939.64,0.00027397,5]
[381516549,1756242648977,-400.0,0.00027397,5]
[381516550,1756242648986,-956.7,0.00027397,5]
[381516551,1756242648996,-400.0,0.00027397,5]
[381516552,1756242649009,-544.01,0.00027397,5]
[381516554,1756242649018,-318.35,0.00027397,5]
[381516556,1756242649028,-1096.54,0.00027397,5]
[381516557,1756242649037,-502.73,0.00027397,5]
[381516558,1756242649048,-1735.15,0.00027397,5]
[381516559,1756242649058,-400.0,0.00027397,5]
[381516560,1756242649067,-743.01,0.00027397,5]
[381516561,1756242649078,-653.71,0.00027397,5]
[381516562,1756242649088,-400.0,0.00027397,5]
[381516563,1756242649099,-1117.43,0.00027397,5]
[381516564,1756242649109,-571.86,0.00027397,5]
[381516565,1756242649118,-544.68,0.00027397,5]
[381516566,1756242649128,-449.7,0.00027397,5]
[381516567,1756242649138,-400.0,0.00027397,5]
[381516568,1756242649147,-400.0,0.00027397,5]
[381516569,1756242649157,-624.19,0.00027397,5]
[381516570,1756242649168,-570.92,0.00027397,5]
[381516571,1756242649178,-821.67,0.00027397,5]
[381516572,1756242649187,-400.0,0.00027397,5]
[381516573,1756242649197,-400.0,0.00027397,5]
[381516574,1756242649207,-1218.76,0.00027397,5]
[381516575,1756242649216,-463.31,0.00027397,5]
[381516576,1756242649226,-400.0,0.00027397,5]
[381516577,1756242649236,-481.88,0.00027397,5]
[381516578,1756242649246,-500.0,0.00027397,5]
[381516579,1756242649256,-400.0,0.00027397,5]
[381516580,1756242649266,-763.57,0.00027397,5]
[381516581,1756242649277,-400.0,0.00027397,5]
[381516582,1756242649287,-938.61,0.00027397,5]
[381516583,1756242649298,-400.0,0.00027397,5]
[381516584,1756242649308,-899.71,0.00027397,5]
[381516585,1756242649318,-400.0,0.00027397,5]
[381516586,1756242649328,-400.0,0.00027397,5]
[381516587,1756242649338,-554.72,0.00027397,5]
[381516588,1756242649348,-400.0,0.00027397,5]
[381516589,1756242649358,-467.4,0.00027397,5]
[381516590,1756242649369,-400.0,0.00027397,5]
[381516591,1756242649379,-1155.13,0.00027397,5]
[381516592,1756242649389,-422.55,0.00027397,5]
[381516593,1756242649399,-1170.18,0.00027397,5]
[381516594,1756242649409,-825.02,0.00027397,5]
[381516595,1756242649419,-480.26,0.00027397,5]
[381516596,1756242649429,-692.67,0.00027397,5]
[381516597,1756242649438,-400.0,0.00027397,5]
[381516598,1756242649448,-1056.46,0.00027397,5]
[381516599,1756242649458,-611.65,0.00027397,5]
[381516600,1756242649468,-400.0,0.00027397,5]
[381516601,1756242649478,-400.0,0.00027397,5]
[381516602,1756242649488,-400.0,0.00027397,5]
[381516603,1756242649498,-400.0,0.00027397,5]
[381516604,1756242649509,-915.87,0.00027397,5]
[381516605,1756242649519,-400.0,0.00027397,5]
[381516606,1756242649529,-484.03,0.00027397,5]
[381516607,1756242649539,-1800.56,0.00027397,5]
[381516608,1756242649549,-493.34,0.00027397,5]
[381516609,1756242649558,-1435.1,0.00027397,5]
[381516610,1756242649569,-400.0,0.00027397,5]
[381516611,1756242649579,-770.79,0.00027397,5]
[381516612,1756242649589,-234.43121454,0.00027397,5]
[381516613,1756242649599,-853.18,0.00027397,5]
[381516614,1756242649609,-1087.24,0.00027397,5]
[381516615,1756242649619,-748.33,0.00027397,5]
[381516616,1756242649629,-995.88,0.00027397,5]
[381516617,1756242649639,-842.21,0.00027397,5]
[381516618,1756242649649,-400.0,0.00027397,5]
[381516619,1756242649659,-400.0,0.00027397,5]
[381516620,1756242649668,-400.0,0.00027397,5]
[381516621,1756242649678,-952.31,0.00027397,5]
[381516622,1756242649687,-665.77,0.00027397,5]
[381516623,1756242649697,-417.57,0.00027397,5]
[381516624,1756242649708,-727.27,0.00027397,5]
[381516625,1756242649717,-858.11,0.00027397,5]
[381516626,1756242649726,-964.25,0.00027397,5]
[381516627,1756242649736,-400.0,0.00027397,5]
[381516628,1756242649745,-919.46,0.00027397,5]
[381516629,1756242649755,-577.09,0.00027397,5]
[381516630,1756242649764,-1217.2,0.00027397,5]
[381516631,1756242649774,-694.71,0.00027397,5]
[381516632,1756242649783,-400.0,0.00027397,5]
[381516633,1756242649793,-400.0,0.00027397,5]
[381516634,1756242649803,-525.88,0.00027397,5]
[381516635,1756242649813,-432.03,0.00027397,5]
[381516636,1756242649822,-400.0,0.00027397,5]
[381516637,1756242649832,-400.0,0.00027397,5]
[381516638,1756242649842,-697.97,0.00027397,5]
[381516639,1756242649852,-400.0,0.00027397,5]
[381516640,1756242649862,-400.0,0.00027397,5]
[381516641,1756242649872,-400.0,0.00027397,5]
[381516642,1756242649881,-420.53,0.00027397,5]
[381516643,1756242649891,-931.84,0.00027397,5]
[381516644,1756242649900,-1208.4,0.00027397,5]
[381516645,1756242649910,-400.0,0.00027397,5]
[381516646,1756242649919,-995.6,0.00027397,5]
[381516647,1756242649928,-400.0,0.00027397,5]
[381516648,1756242649938,-400.0,0.00027397,5]
[381516649,1756242649947,-644.26,0.00027397,5]
[381516650,1756242649956,-400.0,0.00027397,5]
[381516651,1756242649965,-1001.5,0.00027397,5]
[381516652,1756242649975,-400.0,0.00027397,5]
[381516653,1756242649984,-400.0,0.00027397,5]
[381516654,1756242649994,-400.0,0.00027397,5]
[381516655,1756242650006,-500.62,0.00027397,5]
[381516656,1756242650015,-530.46,0.00027397,5]
[381516657,1756242650025,-495.26,0.00027397,5]
[381516658,1756242650034,-665.46,0.00027397,5]
[381516659,1756242650044,-400.0,0.00027397,5]
[381516660,1756242650056,-532.58,0.00027397,5]
[381516661,1756242650066,-872.78,0.00027397,5]
[381516662,1756242650077,-400.0,0.00027397,5]
[381516663,1756242650086,-400.0,0.00027397,5]
[381516664,1756242650096,-400.0,0.00027397,5]
[381516665,1756242650105,-923.35,0.00027397,5]
[381516666,1756242650115,-400.0,0.00027397,5]
[381516667,1756242650125,-709.83,0.00027397,5]
[381516668,1756242650134,-445.33,0.00027397,5]
[381516669,1756242650144,-535.55,0.00027397,5]
[381516670,1756242650153,-461.92,0.00027397,5]
[381516671,1756242650163,-151.0,0.00027397,7]
[381516672,1756242650173,-581.78,0.00027397,5]
[381516673,1756242650183,-151.679859,0.00027397,7]
[381516674,1756242650192,-400.0,0.00027397,5]
[381516675,1756242650202,-447.69,0.00027397,5]
[381516676,1756242650211,-1065.54,0.00027397,5]
[381516677,1756242650220,-1048.34,0.00027397,5]
[381516678,1756242650230,-400.0,0.00027397,5]
[381516679,1756242650239,-538.27,0.00027397,5]
[381516680,1756242650248,-400.0,0.00027397,5]
[381516681,1756242650258,-681.04,0.00027397,5]
[381516682,1756242650267,-706.01,0.00027397,5]
[381516683,1756242650276,-573.94,0.00027397,5]
[381516684,1756242650286,-1438.64,0.00027397,5]
[381516685,1756242650295,-579.66,0.00027397,5]
[381516686,1756242650304,-499.67,0.00027397,5]
[381516687,1756242650314,-1552.44,0.00027397,5]
[381516688,1756242650323,-632.5,0.00027397,5]
[381516689,1756242650333,-1180.64,0.00027397,5]
[381516690,1756242650342,-500.0,0.00027397,5]
[381516691,1756242650351,-824.66,0.00027397,5]
[381516692,1756242650360,-500.0,0.00027397,5]
[381516693,1756242650370,-400.0,0.00027397,5]
[381516694,1756242650379,-400.0,0.00027397,5]
[381516695,1756242650388,-589.63,0.00027397,5]
[381516696,1756242650398,-400.0,0.00027397,5]
[381516697,1756242650407,-516.61,0.00027397,5]
[381516698,1756242650417,-400.0,0.00027397,5]
[381516699,1756242650426,-400.0,0.00027397,5]
[381516700,1756242650435,-848.41,0.00027397,5]
[381516701,1756242650444,-685.31,0.00027397,5]
[381516702,1756242650453,-448.63,0.00027397,5]
[381516703,1756242650462,-655.02,0.00027397,5]